[Event "RUS-ch Rapid Women 2021"]
[White "Gvanceladze,Anna"]
[Black "Goltseva,Ekaterina"]
[Site "Sochi"]
[Round "6.4"]
[Annotator "NA RC"]
[Result "0-1"]
[Date "2021.10.13"]
[WhiteElo "2196"]
[BlackElo "2304"]
[PlyCount "127"]
[TimeControl "5400+30"]

1. d4 {[%emt 1:15:42]} Nf6 {[%emt 1:15:40]} 2. Nf3 {[%emt 0:0:22]} e6 {[%emt 0:0:22]
} 3. c4 {[%emt 0:0:24]} d5 {[%emt 0:0:21]} 4. Nc3 {[%emt 0:0:0]} dxc4 {[%emt 0:0:23]} 5. e3 {[%emt 0:0:22]} a6 {[%emt 0:0:23]} 6. Bxc4 {[%emt 0:0:23]
} b5 {[%emt 0:0:22]} 7. Bb3 {[%emt 0:0:21]} Bb7 {[%emt 0:0:25]
} 8. 0-0 {[%emt 0:0:22]} Nbd7 {[%emt 0:0:22]} 9. Qe2 {[%emt 0:2:9]} c5 {[%emt 0:0:35]
} 10. Rd1 {[%emt 0:0:22]} Qb8 {[%emt 0:1:16]} 11. e4 {[%emt 0:0:0]} cxd4 {[%emt 0:1:38]} 12. Nxd4 {[%emt 0:1:38]} Bd6 {[%emt 0:2:27]} 13. h3 {[%emt 0:3:17]} 0-0 {[%emt 0:3:31]} 14. a3 {[%emt 0:1:37]} Rd8 {[%emt 0:1:51]
} 15. Bc2 {[%emt 0:2:49]} Bf4 {[%emt 0:2:57]} 16. Be3 {[%emt 0:0:0]} Bxe3 {[%emt 0:2:28]} 17. Qxe3 {[%emt 0:0:22]} Ne5 {[%emt 0:0:31]} 18. Bb3 {[%emt 0:0:22]} Ng6 {[%emt 0:0:45]} 19. Nde2 {[%emt 0:0:54]} Qc7 {[%emt 0:2:32]
} 20. Rac1 {[%emt 0:0:44]} Rxd1+ {[%emt 0:0:40]} 21. Rxd1 {[%emt 0:0:22]
} Ne5 {[%emt 0:0:31]} 22. Qd4 {[%emt 0:1:25]} Nc6 {[%emt 0:0:0]} 23. Qc5 {[%emt 0:1:1]} Rc8 {[%emt 0:0:32]} 24. Qd6 {[%emt 0:1:13]} Qxd6 {[%emt 0:0:30]} 25. Rxd6 {[%emt 0:0:22]} Na5 {[%emt 0:0:30]} 26. Ba2 {[%emt 0:1:0]
} g6 {[%emt 0:1:1]} 27. f3 {[%emt 0:0:23]} Rc7 {[%emt 0:0:34]
} 28. Kf2 {[%emt 0:0:51]} Nd7 {[%emt 0:0:23]} 29. b4 {[%emt 0:1:28]} Nc6 {[%emt 0:0:24]
} 30. Ke3 {[%emt 0:0:34]} Kf8 {[%emt 0:0:23]} 31. Rd1 {[%emt 0:0:0]} Ke7 {[%emt 0:0:23]} 32. f4 {[%emt 0:0:24]} Nb6 {[%emt 0:0:31]} 33. g4 {[%emt 0:0:26]} Nb8 {[%emt 0:0:40]} 34. g5 {[%emt 0:0:34]} Nc4+ {[%emt 0:0:0]} 35. Bxc4 {[%emt 0:0:22]} Rxc4 {[%emt 0:0:21]} 36. h4 {[%emt 0:0:23]} Nd7 {[%emt 0:0:37]} 37. h5 {[%emt 0:0:25]} Nb6 {[%emt 0:0:28]} 38. h6 {[%emt 0:0:37]
} Rc8 {[%emt 0:0:29]} 39. Ra1 {[%emt 0:0:37]} Nc4+ {[%emt 0:0:0]} 40. Kd3 {[%emt 0:0:58]} Rd8+ {[%emt 0:0:27]} 41. Nd4 {[%emt 0:0:24]} e5 {[%emt 0:0:31]} 42. fxe5 {[%emt 0:0:22]} Nxe5+ {[%emt 0:0:20]} 43. Ke3 {[%emt 0:0:21]
} f6 {[%emt 0:0:41]} 44. gxf6+ {[%emt 0:0:28]} Kxf6 {[%emt 0:0:0]} 45. a4 {[%emt 0:0:28]} Nc4+ {[%emt 0:0:25]} 46. Kd3 {[%emt 0:0:20]} Ke5 {[%emt 0:0:22]} 47. Nd5 {[%emt 0:0:36]} Bxd5 {[%emt 0:0:39]} 48. exd5 {[%emt 0:0:21]
} Rxd5 {[%emt 0:0:24]} 49. Re1+ {[%emt 0:0:21]} Kf4 {[%emt 0:0:0]} 50. Rf1+ {[%emt 0:0:28]} Kg5 {[%emt 0:0:26]} 51. axb5 {[%emt 0:0:31]
} axb5 {[%emt 0:0:21]} 52. Rh1 {[%emt 0:0:37]} Kf6 {[%emt 0:0:57]} 53. Kc3 {[%emt 0:0:30]
} Ne5 {[%emt 0:0:49]} 54. Rf1+ {[%emt 0:0:38]} Ke7 {[%emt 0:0:0]} 55. Ra1 {[%emt 0:0:31]} Nf7 {[%emt 0:0:38]} 56. Ra7+ {[%emt 0:0:41]} Rd7 {[%emt 0:0:37]} 57. Nxb5 {[%emt 0:0:41]} Nxh6 {[%emt 0:0:32]} 58. Ra1 {[%emt 0:0:42]
} Nf5 {[%emt 0:0:25]} 59. Re1+ {[%emt 0:0:23]} Kf6 {[%emt 0:0:0]} 60. Na3 {[%emt 0:0:33]} Rc7+ {[%emt 0:0:24]} 61. Kd3 {[%emt 0:0:27]} h5 {[%emt 0:0:31]} 62. b5 {[%emt 0:0:22]} Rb7 {[%emt 0:0:27]} 63. Kc4 {[%emt 0:0:0]} Nd6+ {[%emt 0:0:40]} 64. Kc5 {[%emt 0:0:21]} 0-1

[Event "RUS-ch Rapid Women 2021"]
[White "Khokhlova,Daria"]
[Black "Kovanova,Baira"]
[Site "Sochi"]
[Round "6.5"]
[Annotator "NA"]
[Result "0-1"]
[Date "2021.10.13"]
[WhiteElo "2134"]
[BlackElo "2331"]
[PlyCount "60"]
[TimeControl "5400+30"]

1. d4 {[%emt 1:15:40]} Nf6 {[%emt 1:15:42]} 2. c4 {[%emt 0:0:21]} e6 {[%emt 0:0:0]} 3. Nc3 {[%emt 0:0:22]} Bb4 {[%emt 0:0:23]} 4. e3 {[%emt 0:0:21]} 0-0 {[%emt 0:1:5]} 5. Bd2 {[%emt 0:0:24]} d5 {[%emt 0:0:26]} 6. Bd3 {[%emt 0:0:0]} a6 {[%emt 0:1:11]} 7. b3 {[%emt 0:2:57]} dxc4 {[%emt 0:0:52]} 8. bxc4 {[%emt 0:0:24]} c5 {[%emt 0:0:21]} 9. a3 {[%emt 0:0:55]} Ba5 {[%emt 0:0:0]} 10. Nf3 {[%emt 0:2:45]} cxd4 {[%emt 0:2:28]} 11. exd4 {[%emt 0:0:29]
} e5 {[%emt 0:0:48]} 12. Ne4 {[%emt 0:3:36]} Bxd2+ {[%emt 0:1:59]} 13. Qxd2 {[%emt 0:0:21]} exd4 {[%emt 0:0:33]} 14. 0-0 {[%emt 0:1:7]} Nc6 {[%emt 0:0:0]} 15. Nxf6+ {[%emt 0:0:56]} Qxf6 {[%emt 0:0:23]} 16. Be4 {[%emt 0:0:0]} Rd8 {[%emt 0:2:52]} 17. Rab1 {[%emt 0:1:46]} Rb8 {[%emt 0:0:25]} 18. Qd3 {[%emt 0:1:28]} h6 {[%emt 0:0:58]} 19. Bxc6 {[%emt 0:1:9]} Qxc6 {[%emt 0:0:26]
} 20. Nxd4 {[%emt 0:0:44]} Qf6 {[%emt 0:1:17]} 21. Rfd1 {[%emt 0:0:46]
} Be6 {[%emt 0:3:4]} 22. c5 {[%emt 0:1:39]} Rbc8 {[%emt 0:0:0]} 23. Qe3 {[%emt 0:1:1]} Bd5 {[%emt 0:0:59]} 24. Ne2 {[%emt 0:1:38]} Re8 {[%emt 0:1:0]} 25. Qc3 {[%emt 0:0:27]} Qg5 {[%emt 0:1:53]} 26. Ng3 {[%emt 0:0:32]
} Bc6 {[%emt 0:0:22]} 27. Rbc1 {[%emt 0:0:43]} h5 {[%emt 0:0:0]} 28. Qd2 {[%emt 0:0:28]} Qg6 {[%emt 0:0:24]} 29. Qd6 {[%emt 0:0:33]} Re6 {[%emt 0:0:26]} 30. Qd3 {[%emt 0:0:39]} Re1+ {[%emt 0:0:24]} 0-1

[Event "RUS-ch Rapid Women 2021"]
[White "Kovalevskaya,Ekaterina"]
[Black "Diakonova,Ekaterina"]
[Site "Sochi"]
[Round "6.6"]
[Annotator "NA RC"]
[Result "1/2-1/2"]
[Date "2021.10.13"]
[WhiteElo "2364"]
[BlackElo "2157"]
[PlyCount "92"]
[TimeControl "5400+30"]

1. e4 {[%emt 1:15:43]} d6 {[%emt 1:15:42]} 2. d4 {[%emt 0:0:25]} g6 {[%emt 0:0:0]} 3. Nf3 {[%emt 0:0:35]} Nf6 {[%emt 0:0:31]} 4. Nc3 {[%emt 0:0:25]} c6 {[%emt 0:0:22]} 5. Be2 {[%emt 0:0:42]} Bg7 {[%emt 0:0:25]} 6. 0-0 {[%emt 0:0:0]} Nbd7 {[%emt 0:0:23]} 7. e5 {[%emt 0:2:12]} Nd5 {[%emt 0:2:17]} 8. Nxd5 {[%emt 0:3:44]} cxd5 {[%emt 0:0:21]} 9. exd6 {[%emt 0:0:25]} exd6 {[%emt 0:0:29]
} 10. c3 {[%emt 0:1:18]} 0-0 {[%emt 0:2:9]} 11. Qb3 {[%emt 0:0:0]} Nb6 {[%emt 0:1:3]} 12. Bf4 {[%emt 0:0:59]} Qc7 {[%emt 0:0:48]} 13. Nd2 {[%emt 0:1:56]} h6 {[%emt 0:2:29]} 14. Bf3 {[%emt 0:2:9]} Be6 {[%emt 0:0:0]} 15. Rfe1 {[%emt 0:0:34]} Rfe8 {[%emt 0:2:6]} 16. h4 {[%emt 0:1:4]} Kh7 {[%emt 0:1:15]} 17. Nf1 {[%emt 0:1:0]} Bf6 {[%emt 0:0:37]} 18. Ne3 {[%emt 0:1:1]
} Bxh4 {[%emt 0:4:11]} 19. Nxd5 {[%emt 0:0:54]} Qd8 {[%emt 0:0:0]} 20. c4 {[%emt 0:1:35]} Bg5 {[%emt 0:1:9]} 21. Bxg5 {[%emt 0:0:38]} Qxg5 {[%emt 0:0:22]} 22. Nxb6 {[%emt 0:1:8]} axb6 {[%emt 0:0:21]} 23. d5 {[%emt 0:1:5]
} Bg4 {[%emt 0:1:38]} 24. Bxg4 {[%emt 0:0:26]} Qxg4 {[%emt 0:0:0]} 25. Qxb6 {[%emt 0:0:39]} Rxa2 {[%emt 0:0:22]} 26. Qxd6 {[%emt 0:0:0]} Qd4 {[%emt 0:1:16]} 27. Qd7 {[%emt 0:0:35]} Rxe1+ {[%emt 0:0:28]} 28. Rxe1 {[%emt 0:0:21]} Kg7 {[%emt 0:0:27]} 29. Qe7 {[%emt 0:1:5]} Rxb2 {[%emt 0:0:47]
} 30. Qe3 {[%emt 0:0:27]} Rd2 {[%emt 0:0:44]} 31. Qxd4+ {[%emt 0:0:28]
} Rxd4 {[%emt 0:0:21]} 32. Rc1 {[%emt 0:0:23]} Kf6 {[%emt 0:0:0]} 33. Kf1 {[%emt 0:0:21]} Ke7 {[%emt 0:1:2]} 34. Ke2 {[%emt 0:0:27]} Kd6 {[%emt 0:0:21]} 35. Ke3 {[%emt 0:0:25]} Kc5 {[%emt 0:0:21]} 36. Rb1 {[%emt 0:0:42]
} Rxc4 {[%emt 0:0:34]} 37. Rxb7 {[%emt 0:0:26]} Kxd5 {[%emt 0:0:0]} 38. Rxf7 {[%emt 0:0:23]} Ke6 {[%emt 0:0:21]} 39. Rh7 {[%emt 0:0:26]} h5 {[%emt 0:0:20]} 40. g3 {[%emt 0:0:26]} Kf6 {[%emt 0:0:25]} 41. Kf3 {[%emt 0:0:25]
} Rc2 {[%emt 0:0:25]} 42. Ra7 {[%emt 0:0:21]} Kg5 {[%emt 0:0:0]} 43. Ra5+ {[%emt 0:0:23]} Kf6 {[%emt 0:0:21]} 44. Ra6+ {[%emt 0:0:22]} Kf5 {[%emt 0:0:22]} 45. Ra5+ {[%emt 0:0:22]} Kf6 {[%emt 0:0:22]} 46. Ra6+ {[%emt 0:0:22]
} Kf5 {[%emt 0:0:19]} 1/2-1/2

[Event "RUS-ch Rapid Women 2021"]
[White "Protopopova,Anastasiya"]
[Black "Nasybullina,Alfia"]
[Site "Sochi"]
[Round "7.1"]
[Annotator "NA RC"]
[Result "0-1"]
[Date "2021.10.13"]
[WhiteElo "2257"]
[BlackElo "2101"]
[PlyCount "72"]
[TimeControl "5400+30"]

1. d4 {[%emt 1:15:41]} Nf6 {[%emt 1:15:41]} 2. c4 {[%emt 0:0:22]} c5 {[%emt 0:0:0]} 3. d5 {[%emt 0:0:23]} e6 {[%emt 0:0:21]} 4. Nc3 {[%emt 0:0:26]} exd5 {[%emt 0:0:22]} 5. cxd5 {[%emt 0:0:20]} d6 {[%emt 0:0:22]} 6. g3 {[%emt 0:0:0]} g6 {[%emt 0:0:22]} 7. Bg2 {[%emt 0:0:21]} Bg7 {[%emt 0:0:22]} 8. Nf3 {[%emt 0:0:22]} 0-0 {[%emt 0:0:22]} 9. 0-0 {[%emt 0:0:23]} a6 {[%emt 0:0:0]} 10. a4 {[%emt 0:0:22]} Qe7 {[%emt 0:0:57]} 11. Bf4 {[%emt 0:0:34]} Nbd7 {[%emt 0:0:24]} 12. Re1 {[%emt 0:0:22]} Nh5 {[%emt 0:0:55]} 13. Bg5 {[%emt 0:0:33]
} f6 {[%emt 0:0:23]} 14. Bd2 {[%emt 0:1:14]} Ne5 {[%emt 0:0:0]} 15. Nxe5 {[%emt 0:1:41]} fxe5 {[%emt 0:0:45]} 16. e4 {[%emt 0:0:52]} Bd7 {[%emt 0:0:40]} 17. a5 {[%emt 0:2:8]} Rf7 {[%emt 0:3:17]} 18. Be3 {[%emt 0:3:30]
} Qf8 {[%emt 0:1:16]} 19. Qd2 {[%emt 0:1:46]} Nf6 {[%emt 0:0:0]} 20. h3 {[%emt 0:0:26]} Nh5 {[%emt 0:0:57]} 21. Ne2 {[%emt 0:1:24]} Bb5 {[%emt 0:0:45]} 22. Bh1 {[%emt 0:2:28]} Rc8 {[%emt 0:1:30]} 23. Rac1 {[%emt 0:0:28]
} Bxe2 {[%emt 0:1:55]} 24. Qxe2 {[%emt 0:0:34]} Bh6 {[%emt 0:0:0]} 25. Qd2 {[%emt 0:1:26]} Bxe3 {[%emt 0:0:25]} 26. Rxe3 {[%emt 0:0:24]
} Qd8 {[%emt 0:1:6]} 27. Rb3 {[%emt 0:0:30]} Qd7 {[%emt 0:0:38]} 28. Bg2 {[%emt 0:0:22]
} Rcf8 {[%emt 0:0:24]} 29. Rf1 {[%emt 0:0:29]} Qc7 {[%emt 0:0:0]} 30. h4 {[%emt 0:2:14]} c4 {[%emt 0:0:58]} 31. Rb6 {[%emt 0:0:35]} Qc5 {[%emt 0:0:37]
} 32. Qb4 {[%emt 0:1:39]} Qd4 {[%emt 0:0:54]} 33. Qxd6 {[%emt 0:1:32]
} Nxg3 {[%emt 0:0:53]} 34. Ra1 {[%emt 0:0:37]} Qxf2+ {[%emt 0:0:0]} 35. Kh2 {[%emt 0:0:21]} Qf4 {[%emt 0:0:43]} 36. Kg1 {[%emt 0:0:30]} Ne2+ {[%emt 0:0:22]} 0-1

[Event "RUS-ch Rapid Women 2021"]
[White "Kovanova,Baira"]
[Black "Tomilova,Elena"]
[Site "Sochi"]
[Round "7.2"]
[Annotator "NA RC"]
[Result "1-0"]
[Date "2021.10.13"]
[WhiteElo "2331"]
[BlackElo "2256"]
[PlyCount "57"]
[TimeControl "5400+30"]

1. e4 {[%emt 1:15:40]} e6 {[%emt 1:15:42]} 2. d4 {[%emt 0:0:22]} d5 {[%emt 0:0:0]} 3. e5 {[%emt 0:0:22]} c5 {[%emt 0:0:21]} 4. c3 {[%emt 0:0:22]} Nc6 {[%emt 0:0:21]
} 5. Nf3 {[%emt 0:0:21]} Qb6 {[%emt 0:0:23]} 6. Be2 {[%emt 0:0:0]} cxd4 {[%emt 0:0:38]} 7. cxd4 {[%emt 0:0:21]} Nh6 {[%emt 0:0:28]} 8. Bxh6 {[%emt 0:1:7]} gxh6 {[%emt 0:0:27]} 9. Qd2 {[%emt 0:0:57]} Bg7 {[%emt 0:1:6]
} 10. Nc3 {[%emt 0:1:31]} Bd7 {[%emt 0:0:24]} 11. 0-0 {[%emt 0:0:0]} Rc8 {[%emt 0:0:38]} 12. Rac1 {[%emt 0:1:45]} 0-0 {[%emt 0:0:29]} 13. Bd3 {[%emt 0:1:7]} f6 {[%emt 0:1:12]} 14. exf6 {[%emt 0:3:11]} Rxf6 {[%emt 0:0:23]
} 15. Ne5 {[%emt 0:0:47]} Be8 {[%emt 0:1:56]} 16. Ne2 {[%emt 0:0:0]} Rd8 {[%emt 0:5:57]} 17. Ng4 {[%emt 0:0:33]} Rf8 {[%emt 0:0:38]} 18. Nxh6+ {[%emt 0:1:7]} Kh8 {[%emt 0:0:23]} 19. Qg5 {[%emt 0:1:24]} Bf6 {[%emt 0:1:59]
} 20. Qg3 {[%emt 0:2:14]} Nxd4 {[%emt 0:0:31]} 21. Nxd4 {[%emt 0:0:36]
} Qxd4 {[%emt 0:0:25]} 22. Rc7 {[%emt 0:1:38]} Rd7 {[%emt 0:0:0]} 23. Qd6 {[%emt 0:2:0]} Bg7 {[%emt 0:1:19]} 24. Rxd7 {[%emt 0:0:22]} Bxd7 {[%emt 0:0:20]} 25. Qxd7 {[%emt 0:0:35]} Qxd3 {[%emt 0:0:37]} 26. Nf7+ {[%emt 0:0:32]} Kg8 {[%emt 0:0:36]} 27. Ng5 {[%emt 0:0:25]} Qf5 {[%emt 0:0:0]} 28. Nxe6 {[%emt 0:0:22]} Bd4 {[%emt 0:0:35]} 29. Nxf8 {[%emt 0:0:29]} 1-0

[Event "RUS-ch Rapid Women 2021"]
[White "Chernyak,Viktoria"]
[Black "Paramzina,Anastasya"]
[Site "Sochi"]
[Round "7.3"]
[Annotator "NA"]
[Result "1/2-1/2"]
[Date "2021.10.13"]
[WhiteElo "2285"]
[BlackElo "2260"]
[PlyCount "70"]
[TimeControl "5400+30"]

1. Nf3 {[%emt 1:15:40]} Nf6 {[%emt 1:15:41]} 2. c4 {[%emt 0:0:22]} g6 {[%emt 0:0:24]
} 3. Nc3 {[%emt 0:0:22]} d5 {[%emt 0:0:28]} 4. Qa4+ {[%emt 0:0:0]} Bd7 {[%emt 0:0:37]} 5. Qb3 {[%emt 0:0:24]} dxc4 {[%emt 0:0:21]} 6. Qxc4 {[%emt 0:0:26]} c5 {[%emt 0:0:22]} 7. e4 {[%emt 0:1:12]} Bc6 {[%emt 0:0:0]} 8. g3 {[%emt 0:3:18]} Nbd7 {[%emt 0:3:47]} 9. Bg2 {[%emt 0:0:27]} e5 {[%emt 0:1:28]} 10. 0-0 {[%emt 0:0:42]} Nb6 {[%emt 0:1:0]} 11. Qe2 {[%emt 0:1:13]
} Nfd7 {[%emt 0:1:29]} 12. a4 {[%emt 0:1:17]} Bg7 {[%emt 0:0:0]} 13. b3 {[%emt 0:1:9]} 0-0 {[%emt 0:0:40]} 14. Ba3 {[%emt 0:1:8]} Re8 {[%emt 0:0:43]} 15. Rfc1 {[%emt 0:1:43]} Nc8 {[%emt 0:0:36]} 16. b4 {[%emt 0:1:7]
} cxb4 {[%emt 0:0:49]} 17. Bxb4 {[%emt 0:0:21]} Nf8 {[%emt 0:0:0]} 18. Ra2 {[%emt 0:2:14]} Ne6 {[%emt 0:0:34]} 19. d3 {[%emt 0:1:9]} Bh6 {[%emt 0:3:29]} 20. Rb1 {[%emt 0:0:43]} Nd4 {[%emt 0:0:29]} 21. Qd1 {[%emt 0:0:47]
} Qd7 {[%emt 0:0:41]} 22. Bc5 {[%emt 0:1:43]} Nxf3+ {[%emt 0:0:0]} 23. Bxf3 {[%emt 0:0:30]} b6 {[%emt 0:0:58]} 24. Bb4 {[%emt 0:0:51]} Nd6 {[%emt 0:1:20]} 25. a5 {[%emt 0:0:50]} Nb5 {[%emt 0:0:37]} 26. Nd5 {[%emt 0:2:37]
} Bxd5 {[%emt 0:0:26]} 27. exd5 {[%emt 0:0:19]} Nd4 {[%emt 0:0:0]} 28. axb6 {[%emt 0:0:48]} axb6 {[%emt 0:0:37]} 29. Rxa8 {[%emt 0:0:0]} Nxf3+ {[%emt 0:0:50]} 30. Qxf3 {[%emt 0:0:19]} Rxa8 {[%emt 0:0:32]} 31. d6 {[%emt 0:0:35]} Rd8 {[%emt 0:0:48]} 32. Qd5 {[%emt 0:0:33]} Bf8 {[%emt 0:0:0]} 33. Qxe5 {[%emt 0:0:43]} Bxd6 {[%emt 0:0:22]} 34. Bxd6 {[%emt 0:0:0]} Qxd6 {[%emt 0:0:21]} 35. Qe3 {[%emt 0:0:33]} Qxd3 {[%emt 0:0:29]} 1/2-1/2

[Event "RUS-ch Rapid Women 2021"]
[White "Shafigullina,Zarina"]
[Black "Solozhenkina,Elizaveta"]
[Site "Sochi"]
[Round "7.4"]
[Annotator "NA RC"]
[Result "0-1"]
[Date "2021.10.13"]
[WhiteElo "2204"]
[BlackElo "2325"]
[PlyCount "120"]
[TimeControl "5400+30"]

1. d4 {[%emt 1:15:42]} Nf6 {[%emt 1:15:41]} 2. c4 {[%emt 0:0:21]} g6 {[%emt 0:0:0]} 3. Nf3 {[%emt 0:0:21]} Bg7 {[%emt 0:0:12]} 4. g3 {[%emt 0:0:22]} c6 {[%emt 0:0:22]} 5. Bg2 {[%emt 0:0:34]} 0-0 {[%emt 0:0:23]} 6. 0-0 {[%emt 0:0:0]} d5 {[%emt 0:0:22]} 7. Qb3 {[%emt 0:0:43]} Qb6 {[%emt 0:0:21]} 8. c5 {[%emt 0:0:24]} Qxb3 {[%emt 0:1:4]} 9. axb3 {[%emt 0:0:22]} Nbd7 {[%emt 0:0:0]} 10. Nc3 {[%emt 0:0:31]} Re8 {[%emt 0:0:36]} 11. b4 {[%emt 0:0:45]} e5 {[%emt 0:0:39]} 12. e3 {[%emt 0:0:20]} Ne4 {[%emt 0:1:33]} 13. Rd1 {[%emt 0:2:36]
} f5 {[%emt 0:1:24]} 14. Bf1 {[%emt 0:1:21]} h6 {[%emt 0:2:16]
} 15. Ne2 {[%emt 0:4:7]} a6 {[%emt 0:2:8]} 16. dxe5 {[%emt 0:2:43]} Nxe5 {[%emt 0:0:41]
} 17. Nxe5 {[%emt 0:0:38]} Rxe5 {[%emt 0:1:32]} 18. Nd4 {[%emt 0:1:16]
} Bd7 {[%emt 0:0:36]} 19. f3 {[%emt 0:0:54]} Nf6 {[%emt 0:0:0]} 20. b5 {[%emt 0:0:31]} cxb5 {[%emt 0:0:29]} 21. Bxb5 {[%emt 0:0:51]} Bxb5 {[%emt 0:4:15]} 22. Nxb5 {[%emt 0:0:21]} Rc8 {[%emt 0:0:22]} 23. Nd6 {[%emt 0:1:3]
} Rxc5 {[%emt 0:0:44]} 24. Nxb7 {[%emt 0:0:22]} Rb5 {[%emt 0:0:0]} 25. Na5 {[%emt 0:0:30]} Re6 {[%emt 0:0:31]} 26. Rd3 {[%emt 0:0:36]} Nd7 {[%emt 0:0:29]} 27. Rb3 {[%emt 0:2:53]} d4 {[%emt 0:0:44]} 28. Rxb5 {[%emt 0:1:20]
} axb5 {[%emt 0:0:21]} 29. Kf2 {[%emt 0:0:49]} Nc5 {[%emt 0:0:0]} 30. Bd2 {[%emt 0:1:3]} Nd3+ {[%emt 0:1:54]} 31. Ke2 {[%emt 0:0:21]} Nxb2 {[%emt 0:0:22]} 32. Ra3 {[%emt 0:0:49]} Nc4 {[%emt 0:1:13]} 33. Nxc4 {[%emt 0:0:34]
} bxc4 {[%emt 0:0:21]} 34. Ra8+ {[%emt 0:0:23]} Kh7 {[%emt 0:0:0]} 35. Ra7 {[%emt 0:0:24]} g5 {[%emt 0:1:4]} 36. Rc7 {[%emt 0:0:33]} c3 {[%emt 0:0:32]} 37. Bc1 {[%emt 0:0:24]} dxe3 {[%emt 0:0:28]} 38. f4 {[%emt 0:0:34]
} Kg6 {[%emt 0:0:34]} 39. Rc4 {[%emt 0:0:23]} Ra6 {[%emt 0:0:0]} 40. Bxe3 {[%emt 0:0:35]} Ra2+ {[%emt 0:0:21]} 41. Kd3 {[%emt 0:0:21]} Rxh2 {[%emt 0:0:39]} 42. fxg5 {[%emt 0:0:46]} hxg5 {[%emt 0:0:21]} 43. Rc6+ {[%emt 0:0:22]} Kh5 {[%emt 0:0:31]} 44. Rc7 {[%emt 0:0:25]} Bh6 {[%emt 0:0:0]} 45. Rxc3 {[%emt 0:0:33]} Rg2 {[%emt 0:0:26]} 46. Rc5 {[%emt 0:0:34]} Kg4 {[%emt 0:0:21]} 47. Rc6 {[%emt 0:0:38]} Rxg3 {[%emt 0:0:27]} 48. Ke2 {[%emt 0:0:30]
} Rh3 {[%emt 0:0:21]} 49. Bf2 {[%emt 0:0:27]} Rh2 {[%emt 0:0:0]} 50. Kf1 {[%emt 0:0:23]} Bg7 {[%emt 0:0:35]} 51. Kg1 {[%emt 0:0:23]} Rh3 {[%emt 0:0:23]} 52. Kg2 {[%emt 0:0:34]} Rb3 {[%emt 0:0:41]} 53. Rc4+ {[%emt 0:0:32]
} f4 {[%emt 0:0:26]} 54. Ra4 {[%emt 0:0:21]} Rb2 {[%emt 0:0:0]} 55. Rc4 {[%emt 0:0:43]} Bf8 {[%emt 0:0:39]} 56. Kg1 {[%emt 0:0:37]} Bb4 {[%emt 0:0:32]} 57. Bd4 {[%emt 0:0:25]} Rb1+ {[%emt 0:0:22]} 58. Kf2 {[%emt 0:0:27]
} Be1+ {[%emt 0:0:25]} 59. Ke2 {[%emt 0:0:38]} Bh4 {[%emt 0:0:0]} 60. Be5 {[%emt 0:0:41]} Re1+ {[%emt 0:0:25]} 0-1

[Event "RUS-ch Rapid Women 2021"]
[White "Lysenko,Margarita"]
[Black "Gvanceladze,Anna"]
[Site "Sochi"]
[Round "7.5"]
[Annotator "NA RC"]
[Result "1-0"]
[Date "2021.10.13"]
[WhiteElo "2252"]
[BlackElo "2196"]
[PlyCount "135"]
[TimeControl "5400+30"]

1. d4 {[%emt 1:16:16]} d5 {[%emt 1:15:41]} 2. c4 {[%emt 0:0:22]} c6 {[%emt 0:0:0]} 3. Nc3 {[%emt 0:0:24]} Nf6 {[%emt 0:0:21]} 4. e3 {[%emt 0:0:22]} g6 {[%emt 0:0:39]} 5. Nf3 {[%emt 0:0:26]} Bg7 {[%emt 0:0:22]} 6. Bd3 {[%emt 0:0:0]} 0-0 {[%emt 0:0:26]} 7. h3 {[%emt 0:0:37]} b6 {[%emt 0:1:2]} 8. 0-0 {[%emt 0:0:30]} Bb7 {[%emt 0:1:15]} 9. b3 {[%emt 0:5:41]} e6 {[%emt 0:0:43]
} 10. Bb2 {[%emt 0:0:27]} Re8 {[%emt 0:0:37]} 11. Qe2 {[%emt 0:1:21]} Nbd7 {[%emt 0:0:51]
} 12. Rad1 {[%emt 0:2:59]} Qc7 {[%emt 0:1:20]} 13. Rfe1 {[%emt 0:1:0]
} Rad8 {[%emt 0:0:33]} 14. cxd5 {[%emt 0:0:47]} exd5 {[%emt 0:0:0]} 15. Rc1 {[%emt 0:0:27]} Qd6 {[%emt 0:1:21]} 16. Qc2 {[%emt 0:0:27]} Rc8 {[%emt 0:3:26]} 17. Qb1 {[%emt 0:1:14]} Bh6 {[%emt 0:2:21]} 18. Rcd1 {[%emt 0:1:57]
} Re6 {[%emt 0:1:34]} 19. Ne2 {[%emt 0:0:44]} Ne4 {[%emt 0:0:0]} 20. Ne5 {[%emt 0:0:30]} f6 {[%emt 0:1:44]} 21. Bxe4 {[%emt 0:0:30]} fxe5 {[%emt 0:1:5]} 22. dxe5 {[%emt 0:0:30]} Nxe5 {[%emt 0:0:55]} 23. Bc2 {[%emt 0:0:32]
} Rf8 {[%emt 0:1:6]} 24. Nd4 {[%emt 0:0:31]} Re7 {[%emt 0:0:0]} 25. f4 {[%emt 0:0:32]} Nd7 {[%emt 0:0:31]} 26. Nf3 {[%emt 0:0:40]} Bg7 {[%emt 0:0:39]} 27. Kh1 {[%emt 0:0:39]} Bxb2 {[%emt 0:0:32]} 28. Qxb2 {[%emt 0:0:20]
} Qf6 {[%emt 0:0:23]} 29. Qc1 {[%emt 0:0:43]} Rfe8 {[%emt 0:0:0]} 30. Qd2 {[%emt 0:0:24]} c5 {[%emt 0:1:20]} 31. b4 {[%emt 0:1:36]} Kg7 {[%emt 0:0:33]
} 32. Ba4 {[%emt 0:0:26]} Rd8 {[%emt 0:0:41]} 33. Bxd7 {[%emt 0:0:26]
} Rdxd7 {[%emt 0:0:25]} 34. Ne5 {[%emt 0:0:31]} Rxe5 {[%emt 0:0:0]} 35. fxe5 {[%emt 0:0:22]} Qxe5 {[%emt 0:0:21]} 36. bxc5 {[%emt 0:0:0]} bxc5 {[%emt 0:0:21]} 37. Rf1 {[%emt 0:0:32]} Qg3 {[%emt 0:0:28]} 38. Rf3 {[%emt 0:0:27]} Qg5 {[%emt 0:0:26]} 39. Rf4 {[%emt 0:0:58]} Qh5 {[%emt 0:0:34]
} 40. Rdf1 {[%emt 0:0:50]} d4 {[%emt 0:0:28]} 41. e4 {[%emt 0:0:0]} Qe5 {[%emt 0:0:33]} 42. Qf2 {[%emt 0:0:33]} Re7 {[%emt 0:0:41]} 43. Rf7+ {[%emt 0:0:29]} Kg8 {[%emt 0:0:32]} 44. Rxe7 {[%emt 0:0:40]} Qxe7 {[%emt 0:0:20]
} 45. e5 {[%emt 0:0:23]} Bd5 {[%emt 0:0:45]} 46. a3 {[%emt 0:0:0]} Bc4 {[%emt 0:0:48]} 47. Rc1 {[%emt 0:0:35]} Bd5 {[%emt 0:0:24]} 48. Qf4 {[%emt 0:0:36]} d3 {[%emt 0:0:32]} 49. Kh2 {[%emt 0:0:33]} c4 {[%emt 0:0:0]} 50. Qd4 {[%emt 0:0:24]} Qb7 {[%emt 0:0:41]} 51. Rxc4 {[%emt 0:0:39]} Bxc4 {[%emt 0:0:29]} 52. Qxc4+ {[%emt 0:0:22]} Qf7 {[%emt 0:0:36]} 53. Qxd3 {[%emt 0:0:27]} Qf4+ {[%emt 0:0:20]} 54. Qg3 {[%emt 0:0:21]} Qe4 {[%emt 0:0:0]} 55. Qg5 {[%emt 0:0:24]} Kf7 {[%emt 0:0:43]} 56. Qf6+ {[%emt 0:0:24]} Ke8 {[%emt 0:0:23]} 57. Qe6+ {[%emt 0:0:44]} Kf8 {[%emt 0:0:30]} 58. Qd6+ {[%emt 0:0:41]
} Kf7 {[%emt 0:0:31]} 59. Qf6+ {[%emt 0:0:38]} Ke8 {[%emt 0:0:0]} 60. Qh8+ {[%emt 0:0:37]} Ke7 {[%emt 0:0:33]} 61. Qxh7+ {[%emt 0:0:24]} Ke6 {[%emt 0:0:23]} 62. Qg8+ {[%emt 0:0:26]} Ke7 {[%emt 0:0:51]} 63. Qg7+ {[%emt 0:0:24]
} Ke8 {[%emt 0:0:35]} 64. Qf6 {[%emt 0:0:25]} Kd7 {[%emt 0:0:0]} 65. Qd6+ {[%emt 0:0:27]} Ke8 {[%emt 0:0:21]} 66. e6 {[%emt 0:0:27]} Qf5 {[%emt 0:0:24]} 67. Qd7+ {[%emt 0:0:25]} Kf8 {[%emt 0:0:21]} 68. e7+ {[%emt 0:0:21]
} 1-0

[Event "RUS-ch Rapid Women 2021"]
[White "Dimitrova,Aleksandra"]
[Black "Balaian,Alina"]
[Site "Sochi"]
[Round "7.6"]
[Annotator "NA RC"]
[Result "0-1"]
[Date "2021.10.13"]
[WhiteElo "2197"]
[BlackElo "2242"]
[PlyCount "38"]
[TimeControl "5400+30"]

1. e4 {[%emt 1:15:40]} e6 {[%emt 1:15:40]} 2. d4 {[%emt 0:0:14]} d5 {[%emt 0:0:0]} 3. Nc3 {[%emt 0:0:34]} Bb4 {[%emt 0:0:23]} 4. e5 {[%emt 0:0:26]} c5 $11 {[%emt 0:0:22]} 5. a3 {[%emt 0:0:22]} Bxc3+ {[%emt 0:0:21]} 6. bxc3 {[%emt 0:0:21]
} Ne7 {[%emt 0:0:22]} 7. Qg4 {[%emt 0:0:31]} cxd4 {[%emt 0:0:0]} 8. cxd4 {[%emt 0:0:25]} Qc7 {[%emt 0:0:25]} 9. Bd2 {[%emt 0:1:35]} Qxc2 {[%emt 0:0:48]} 10. Qxg7 {[%emt 0:1:32]} Rg8 {[%emt 0:0:30]} 11. Qh6 {[%emt 0:1:9]
} Nbc6 {[%emt 0:1:21]} 12. Nf3 {[%emt 0:1:26]} Qb2 {[%emt 0:0:0]} 13. Rc1 {[%emt 0:1:13]} Nxd4 {[%emt 0:1:47]} 14. Nxd4 {[%emt 0:0:48]} Qxd4 {[%emt 0:0:22]} 15. Bb5+ {[%emt 0:1:28]} Bd7 {[%emt 0:0:24]} 16. Bxd7+ {[%emt 0:2:11]} Kxd7 {[%emt 0:0:21]} 17. 0-0 {[%emt 0:1:38]} Rxg2+ {[%emt 0:0:0]} 18. Kxg2 {[%emt 0:0:41]} Qg4+ {[%emt 0:0:23]} 19. Kh1 {[%emt 0:0:22]
} Rg8 {[%emt 0:0:29]} 0-1